[Event "5th Sharjah Masters 2022"]
[Site "Sharjah"]
[Date "2022.05.26"]
[Round "6.33"]
[White "Mastrovasilis, Athanasios"]
[Black "Assaubayeva, Bibisara"]
[Result "1-0"]
[ECO "A49"]
[WhiteElo "2540"]
[BlackElo "2439"]
[Annotator "TA"]
[PlyCount "107"]
[EventDate "2022.05.21"]
[EventType "swiss"]
[EventCountry "UAE"]
[SourceTitle "playchess.com"]
[Source "ChessBase"]
[SourceQuality "1"]
[TimeControl "5400+30"]

{[%evp 10,107,28,3,32,13,20,19,39,25,41,43,41,44,62,60,59,59,63,66,55,68,95,95,103,95,93,83,105,77,75,75,75,75,113,77,77,63,63,61,79,70,75,73,78,81,80,80,107,109,106,96,78,75,75,75,78,78,114,71,75,71,71,52,71,71,113,77,136,136,144,142,161,166,166,158,175,168,166,160,228,231,224,212,245,161,318,318,318,308,364,335,688,664,1579,1528,1400,1553,1483,1307]} 1. d4 {[%emt 0:01:04]} Nf6 {[%emt 0:00:13]} 2. Nf3 {[%emt 0:00:18]} g6 {[%emt 0:00:11]} 3. g3 {[%emt 0:00:10]} Bg7 {[%emt 0:00:40]} 4. Bg2 {[%emt 0:00:09]} O-O {[%emt 0:00:05]} 5. O-O {[%emt 0:00:12]} d6 {[%emt 0:02:05]} 6. b3 {[%emt 0:00:19]} b5 {[%emt 0:05:46] A49: 1 d4 Nf6 2 Nf3 g6 3 g3: Anti-King's Indian systems.} 7. Nbd2 {[%emt 0:00:23]} Bb7 {[%emt 0:00:22]} 8. c4 {[%emt 0:00:08]} a6 {[%emt 0:02:41] The position is equal.} 9. Bb2 {[%emt 0:01:47]} Nbd7 {[%emt 0:00:25]} 10. Qc2 {[%emt 0:00:19]} c5 {[%emt 0:03:58]} 11. d5 $1 {[%emt 0:02:16] [#]} bxc4 $146 {[%emt 0:01:12]} ({Predecessor:} 11... Ne8 12. Bxg7 Nxg7 13. Qd3 Qc7 14. Ne4 Rfb8 15. Nc3 bxc4 16. bxc4 Bc8 17. Rfb1 Qa5 {½-½ (44) Fridman,D (2652)-Socko,B (2628) Germany 2011}) 12. bxc4 {[%emt 0:00:07]} Qc7 {[%emt 0:05:49]} 13. e4 {[%emt 0:01:59]} Rfe8 {[%emt 0:06:58]} 14. Rab1 {[%emt 0:04:47]} Rab8 {[%emt 0:06:40]} 15. Rfe1 {[%emt 0:10:04]} e5 {[%emt 0:04:01]} 16. Bc3 {[%emt 0:02:59]} Ba8 {[%emt 0:05:41]} 17. Qa4 {[%emt 0:01:39]} Qa7 {[%emt 0:00:46]} 18. Bh3 {[%emt 0:08:07]} Nb6 {[%emt 0:13:06]} 19. Qc2 {[%emt 0:14:07]} Bb7 {[%emt 0:12:45]} 20. Rb3 {[%emt 0:02:47]} Bc8 {[%emt 0:00:49]} 21. Bxc8 {[%emt 0:00:42]} Rexc8 {[%emt 0:00:13]} 22. Reb1 {[%emt 0:07:03][%cal Of3e5] aiming for Nxe5!} Nbd7 {[%emt 0:03:17]} 23. Ba5 {[%emt 0:02:50]} Bf8 {[%emt 0:02:42]} 24. Kg2 {[%emt 0:02:59]} Be7 {[%emt 0:02:22]} 25. Ne1 {[%emt 0:05:19]} Bd8 {[%emt 0:02:47]} 26. Bc3 {[%emt 0:00:10]} Nb6 {[%emt 0:03:43]} 27. Nd3 {[%emt 0:01:01]} Qe7 {[%emt 0:03:51]} 28. f3 {[%emt 0:04:31]} Qe8 {[%emt 0:01:04]} 29. Ra3 {[%emt 0:04:27]} Ra8 {[%emt 0:00:21]} 30. Ba5 {[%emt 0:05:53]} Rcb8 {[%emt 0:00:52]} 31. Rbb3 {[%emt 0:00:26]} h5 {[%emt 0:01:46]} 32. h4 {[%emt 0:00:48]} Kh7 {[%emt 0:00:23]} 33. Nf2 {[%emt 0:00:13][%cal Bd3f2,Bf2h3,Bh3g5][%mdl 32]} Bc7 {[%emt 0:01:25]} 34. Nh3 {[%emt 0:00:49]} Qd8 {[%emt 0:00:38]} 35. Ng5+ {[%emt 0:00:13]} Kg8 {[%emt 0:00:05]} 36. Bc3 {[%emt 0:01:31]} Qc8 {[%emt 0:03:10]} 37. Qd3 {[%emt 0:00:53] Black is on the road to losing.} Nh7 {[%emt 0:00:53]} 38. Nh3 {[%emt 0:02:00]} f6 {[%emt 0:01:56]} (38... Qd7 $142) 39. Nf1 $16 {[%emt 0:00:28]} Nd7 {[%emt 0:00:55]} 40. Ne3 {[%emt 0:00:25] White is more active.} a5 {[%emt 0:01:21]} 41. Rxb8 {[%emt 0:02:38]} Nxb8 {[%emt 0:00:21]} 42. Rb3 {[%emt 0:00:12]} a4 {[%emt 0:01:35]} 43. Rb5 {[%emt 0:00:09]} Nd7 {[%emt 0:00:06]} 44. Qb1 {[%emt 0:01:16]} Qa6 {[%emt 0:00:24]} (44... Qd8 $16 45. f4 Nb6) 45. g4 $18 {[%emt 0:00:33]} (45. Rb7 $6 Ra7 46. Rb5 Kh8 $16) 45... hxg4 {[%emt 0:01:11]} 46. fxg4 {[%emt 0:00:06]} (46. Nxg4 $6 Rb8 $16) 46... Kf7 {[%emt 0:00:23]} 47. Kh2 {[%emt 0:01:35]} ({Don't do} 47. Rb7 $6 Ra7 48. Rxa7 Qxa7 $16) 47... Rh8 $2 {[%emt 0:00:27] [#]} (47... Ke7 48. h5 (48. Rb7 Bb6 $11) 48... Rg8 49. hxg6 Rxg6 50. Nf5+ (50. Rb7 Kd8 $16) 50... Kd8) 48. Rb7 {[%emt 0:11:39]} Rb8 {[%emt 0:00:32]} 49. Rxb8 {[%emt 0:00:00]} Nxb8 {[%emt 0:00:01]} 50. h5 {[%emt 0:00:00]} Nf8 $2 {[%emt 0:01:06]} (50... g5 51. Ng1 Nd7) 51. Qf1 {[%emt 0:00:00] Hoping for hxg6+. White is clearly winning.} Ba5 {[%emt 0:00:54]} 52. hxg6+ {[%emt 0:00:00]} Nxg6 {[%emt 0:00:02] [#]} 53. Qf5 $1 {[%emt 0:00:00] And now Ng5+ would win.} Bxc3 {[%emt 0:00:42]} (53... Ke7 54. Bxa5) 54. Qe6+ {[%emt 0:00:00] Weighted Error Value: White=0.07 (flawless) /Black=0.28 (precise)} 1-0

[Event "5th Sharjah Masters 2022"]
[Site "Sharjah"]
[Date "2022.05.26"]
[Round "6.34"]
[White "Suleymanli, Aydin"]
[Black "Hesham, Abdelrahman"]
[Result "1-0"]
[ECO "E71"]
[WhiteElo "2537"]
[BlackElo "2412"]
[Annotator "TA"]
[PlyCount "97"]
[EventDate "2022.05.21"]
[EventType "swiss"]
[EventCountry "UAE"]
[SourceTitle "playchess.com"]
[Source "ChessBase"]
[SourceQuality "1"]
[TimeControl "5400+30"]

{[%evp 9,97,43,44,23,45,22,61,59,55,63,59,47,64,30,45,35,25,22,50,40,10,1,37,-8,-3,-8,47,42,48,60,74,77,87,93,84,78,93,83,84,88,92,91,151,97,97,97,189,154,151,154,156,151,143,142,393,391,463,84,213,0,411,237,212,208,243,237,281,268,326,258,377,385,387,364,452,444,725,701,847,843,831,979,961,987,983,955,975,889,29982,6660]} 1. d4 {[%emt 0:00:02]} Nf6 {[%emt 0:00:05]} 2. c4 {[%emt 0:00:06]} g6 {[%emt 0:00:04]} 3. Nc3 {[%emt 0:00:04]} Bg7 {[%emt 0:00:05]} 4. e4 {[%emt 0:00:03]} d6 {[%emt 0:00:04]} 5. h3 {[%emt 0:00:03]} Nbd7 {[%emt 0:00:48]} 6. Be3 {[%emt 0:00:33] E71: King's Indian: 4 e4 d6 5 h3.} e5 {[%emt 0:00:13]} 7. d5 {[%emt 0:00:09]} h5 {[%emt 0:00:06]} 8. Bd3 {[%emt 0:03:17] White is slightly better.} Bh6 {[%emt 0:00:23]} 9. Bxh6 {[%emt 0:01:55]} Rxh6 {[%emt 0:01:22]} 10. Qd2 {[%emt 0:00:26]} Rh8 {[%emt 0:00:02] [#]} 11. g3 $146 {[%emt 0:04:20]} ({Predecessor:} 11. O-O-O h4 12. Qe3 Kf8 13. Nf3 Kg7 14. g3 hxg3 15. fxg3 Nc5 16. Bf1 c6 17. Rh2 cxd5 18. exd5 {0-1 (33) Jacobson,B (2491)-Theodorou,N (2554) Dulles 2021}) 11... a5 {[%emt 0:04:43]} 12. Nf3 {[%emt 0:06:57]} Nc5 {[%emt 0:00:11]} 13. Bc2 {[%emt 0:00:13]} Nfd7 {[%emt 0:00:19]} 14. Qe3 {[%emt 0:03:26]} Qe7 {[%emt 0:02:41]} 15. Nd2 {[%emt 0:03:39]} h4 {[%emt 0:00:41]} 16. O-O-O {[%emt 0:01:51]} Nb6 {[%emt 0:00:25]} 17. g4 {[%emt 0:08:30]} Bd7 {[%emt 0:03:38]} (17... g5 $11) 18. f4 $14 {[%emt 0:01:25]} exf4 {[%emt 0:00:34]} 19. Qxf4 {[%emt 0:01:07]} g5 {[%emt 0:00:12]} 20. Qf2 {[%emt 0:01:28][%cal Oe4e5]} f6 {[%emt 0:04:00]} 21. Rhf1 {[%emt 0:03:27]} Rh6 {[%emt 0:00:17]} 22. b3 {[%emt 0:01:47][%cal Oe4e5]} O-O-O {[%emt 0:05:33]} 23. Nf3 {[%emt 0:00:53]} Kb8 {[%emt 0:04:54]} 24. Qd2 {[%emt 0:00:26]} Rhh8 {[%emt 0:06:17]} 25. Rde1 {[%emt 0:00:28]} Nc8 {[%emt 0:01:17] [#]} (25... a4 $142) 26. Nd1 {[%emt 0:02:19]} (26. Nb5 $142 $1) 26... b6 $16 {[%emt 0:03:42]} 27. a3 {[%emt 0:00:18]} Qg7 {[%emt 0:01:14]} (27... Rdf8 $16) 28. Qc3 {[%emt 0:00:30]} Ne7 {[%emt 0:00:24]} 29. b4 {[%emt 0:00:23]} Nb7 {[%emt 0:02:02]} 30. Nd4 {[%emt 0:00:24]} Rhf8 {[%emt 0:02:05]} 31. Ne3 {[%emt 0:01:23] 0x0.001de6dccca8dp-1022s more active pieces.} Ng6 $2 {[%emt 0:00:41][%mdl 8192]} (31... Rde8 $16 32. Nef5 Qf7) 32. Nc6+ $18 {[%emt 0:00:18]} Kc8 {[%emt 0:00:40]} 33. Na7+ {[%emt 0:01:16]} (33. e5 $142 fxe5 34. Bxg6 (34. Nxd8 Rxd8 35. Bxg6 Qxg6 $18) 34... Bxc6 35. dxc6 Qxg6 36. cxb7+ Kxb7 37. bxa5) 33... Kb8 {[%emt 0:00:01] [#]} 34. Nc6+ {[%emt 0:00:06]} (34. Nf5 $1 {[%cal Rf5g7]} Bxf5 35. exf5) 34... Kc8 $1 {[%emt 0:00:03]} 35. Nxd8 {[%emt 0:01:02]} (35. e5 $142 fxe5 36. Bxg6 (36. Nxd8 Rxd8 37. Bxg6 Qxg6 $18) 36... Bxc6 37. dxc6 Qxg6 38. cxb7+ Kxb7 39. bxa5) 35... Kxd8 {[%emt 0:00:10]} 36. Rf2 {[%emt 0:01:24]} Ne5 {[%emt 0:01:19]} 37. Nd1 {[%emt 0:00:32]} Ke7 {[%emt 0:01:35]} 38. Nb2 {[%emt 0:00:10]} axb4 {[%emt 0:00:28]} 39. axb4 {[%emt 0:00:16][%cal Ba3b4,Bb4c5,Bc5c6][%mdl 32] Hoping for Ref1.} Nd8 {[%emt 0:00:09]} (39... Ra8 $142 40. Ref1 Nd8 41. Rxf6 Qxf6 42. Rxf6 Kxf6) 40. c5 {[%emt 0:00:34]} bxc5 {[%emt 0:00:10]} 41. bxc5 {[%emt 0:00:04]} Ndf7 {[%emt 0:00:56]} 42. c6 {[%emt 0:00:29]} Bc8 {[%emt 0:00:36]} (42... Bxg4 $142 43. hxg4 Qh8) 43. Qa5 {[%emt 0:00:46]} Kd8 {[%emt 0:00:02]} 44. Re3 {[%emt 0:00:16][%cal Be1e3,Be3b3,Bb3b8][%mdl 32]} Ng6 {[%emt 0:01:16]} 45. Rb3 {[%emt 0:00:23]} Nfe5 {[%emt 0:00:08]} 46. Rb8 {[%emt 0:00:24][%cal Ob8c8] White threatens Rxc8+! and mate.} Ne7 {[%emt 0:00:06] [#]} 47. Rf5 $1 {[%emt 0:02:10][%mdl 512]} Rh8 {[%emt 0:01:53] [#]} (47... Rg8 48. Qa7) 48. Kb1 $1 {[%emt 0:00:44]} Nxg4 {[%emt 0:00:30] [#]} (48... Qf8 49. Ba4) 49. Nc4 $1 {[%emt 0:00:17] Weighted Error Value: White=0.28 (precise) /Black=0.45} 1-0

[Event "5th Sharjah Masters 2022"]
[Site "Sharjah"]
[Date "2022.05.26"]
[Round "6.35"]
[White "Zawadzka, Jolanta"]
[Black "Ortega Amarelle, Mariano"]
[Result "1/2-1/2"]
[ECO "C45"]
[WhiteElo "2409"]
[BlackElo "2476"]
[Annotator "TA"]
[PlyCount "139"]
[EventDate "2022.05.21"]
[EventType "swiss"]
[EventCountry "UAE"]
[SourceTitle "playchess.com"]
[Source "ChessBase"]
[SourceQuality "1"]
[TimeControl "5400+30"]

{[%evp 9,139,10,12,0,16,0,16,8,18,0,18,14,18,12,33,0,0,0,-7,-18,-25,-20,-28,-27,-16,-68,-39,-47,-18,-17,-20,-19,-19,-19,-16,-18,-15,-10,-14,-12,-11,-7,-11,-11,0,0,0,0,38,0,0,0,0,0,0,0,0,0,0,0,0,0,0,0,0,0,0,0,0,0,0,0,0,0,0,0,0,0,0,0,0,0,0,0,0,0,0,0,0,0,0,0,7,0,0,0,0,0,0,0,0,0,0,0,0,0,0,0,0,0,0,0,0,0,0,0,0,0,0,0,0,0,0,0,0,0,0,0,0,0,0,0]} 1. e4 {[%emt 0:00:03]} e5 {[%emt 0:00:07]} 2. Nf3 {[%emt 0:00:05]} Nc6 {[%emt 0:00:06]} 3. d4 {[%emt 0:00:08]} exd4 {[%emt 0:00:06]} 4. Nxd4 {[%emt 0:00:05]} Qf6 {[%emt 0:01:06]} 5. Nf3 {[%emt 0:00:33]} Bb4+ {[%emt 0:16:09]} 6. c3 {[%emt 0:00:28] C45: Scotch Game.} Bc5 {[%emt 0:00:05]} 7. Be2 {[%emt 0:00:46]} h6 {[%emt 0:16:17]} 8. O-O {[%emt 0:05:15]} Nge7 {[%emt 0:01:43] [#]} 9. a4 $146 {[%emt 0:04:45]} ({Predecessor:} 9. Nbd2 O-O 10. Nc4 d5 11. exd5 Rd8 12. Be3 Rxd5 13. Qb3 Rb8 14. Rad1 Bxe3 15. Nxe3 Rxd1 16. Rxd1 {1-0 (43) Tomczak,J (2604)-Gumularz,S (2512) Polanica Zdroj 2021}) 9... O-O {[%emt 0:10:38]} 10. Na3 {[%emt 0:04:04]} a6 {[%emt 0:13:21] Inhibits Nb5.} 11. Nc2 {[%emt 0:07:49]} d6 {[%emt 0:03:02]} 12. b4 {[%emt 0:03:53]} Bb6 {[%emt 0:00:35]} 13. a5 {[%emt 0:01:19]} Ba7 {[%emt 0:00:06]} 14. Ra3 {[%emt 0:01:04]} Qg6 {[%emt 0:04:47]} 15. Bd3 {[%emt 0:15:33]} Bh3 {[%emt 0:04:12][%csl Gh3][%cal Rg6g2] [#]} 16. Nh4 {[%emt 0:06:17]} Qf6 {[%emt 0:00:28]} 17. Qh5 {[%emt 0:01:00]} (17. Nf3 $11 Be6 18. Ne3) 17... Ne5 {[%emt 0:02:21]} 18. Be2 {[%emt 0:06:10] Inhibits Bg4.} Bg4 {[%emt 0:12:27]} 19. Bxg4 {[%emt 0:00:12] Dancing on a razor blade.} g6 {[%emt 0:00:03]} 20. Nxg6 {[%emt 0:03:02]} fxg6 {[%emt 0:00:17]} 21. Qh3 {[%emt 0:00:03]} Bxf2+ {[%emt 0:00:31]} 22. Kh1 {[%emt 0:00:05] [#] Be6+ is the strong threat.} Qh4 {[%emt 0:01:02]} 23. Qxh4 {[%emt 0:10:00]} Bxh4 {[%emt 0:00:05][%cal Rf8f1]} 24. Bf3 {[%emt 0:00:05]} Bg5 {[%emt 0:02:18]} 25. Bxg5 {[%emt 0:01:19]} hxg5 {[%emt 0:00:05]} 26. Raa1 {[%emt 0:00:28]} Rf6 {[%emt 0:02:37]} 27. Kg1 {[%emt 0:04:47]} Raf8 {[%emt 0:01:40]} 28. Nd4 {[%emt 0:03:03]} N7c6 {[%emt 0:03:42]} 29. Be2 {[%emt 0:03:17]} Rxf1+ {[%emt 0:03:01] The position is equal.} 30. Bxf1 {[%emt 0:00:05]} Nd8 {[%emt 0:00:10] Inhibits Ne6.} 31. b5 {[%emt 0:03:57]} axb5 {[%emt 0:00:05]} 32. Nxb5 {[%emt 0:00:06]} Ne6 {[%emt 0:00:49]} 33. a6 {[%emt 0:02:31]} bxa6 {[%emt 0:00:10]} 34. Rxa6 {[%emt 0:00:04]} Kg7 {[%emt 0:00:58]} 35. Ra7 {[%emt 0:01:43][%csl LRc7,LRd6]} Rf7 {[%emt 0:00:10]} 36. Be2 {[%emt 0:01:02]} Kf6 {[%emt 0:00:59]} 37. Bd1 {[%emt 0:01:46]} c6 {[%emt 0:01:16]} 38. Rxf7+ {[%emt 0:00:58]} Nxf7 $11 {[%emt 0:00:02][%mdl 4096] Endgame KBN-KNN} 39. Nd4 {[%emt 0:00:44]} Ned8 {[%emt 0:01:03]} 40. Kf2 {[%emt 0:01:01]} Ne5 {[%emt 0:00:12]} 41. Ba4 {[%emt 0:01:36]} c5 {[%emt 0:00:57]} 42. Nb5 {[%emt 0:00:50]} Ke7 {[%emt 0:00:34]} 43. Nc7 {[%emt 0:00:35]} Ndf7 {[%emt 0:00:30]} 44. Nd5+ {[%emt 0:00:50]} Ke6 {[%emt 0:00:39]} 45. Nc7+ {[%emt 0:00:22]} Ke7 {[%emt 0:00:26]} 46. Nd5+ {[%emt 0:00:16]} Kf8 {[%emt 0:00:36]} 47. Nc7 {[%emt 0:01:05]} Kg7 {[%emt 0:00:42]} 48. Ne8+ {[%emt 0:00:17]} Kf8 {[%emt 0:00:26]} 49. Nc7 {[%emt 0:00:15]} Ke7 {[%emt 0:00:29]} 50. Nd5+ {[%emt 0:00:14]} Ke6 {[%emt 0:00:03]} 51. Nc7+ {[%emt 0:00:58]} Kf6 {[%emt 0:00:07]} 52. Nd5+ {[%emt 0:00:16]} Kg7 {[%emt 0:00:08]} 53. Nc7 {[%emt 0:00:17]} Kf8 {[%emt 0:01:07]} 54. Bb5 {[%emt 0:01:48]} Ng4+ {[%emt 0:00:44]} 55. Kf3 {[%emt 0:02:12]} Nfe5+ {[%emt 0:00:26]} 56. Kg3 {[%emt 0:00:03]} Ke7 {[%emt 0:00:18]} 57. Nd5+ {[%emt 0:00:10]} Kf7 {[%emt 0:00:08]} 58. Be2 {[%emt 0:03:52]} Nf6 {[%emt 0:00:10]} 59. Nxf6 {[%emt 0:00:20]} Kxf6 {[%emt 0:00:02] KB-KN} 60. Kf2 {[%emt 0:00:08]} Nd7 {[%emt 0:01:45]} 61. Bb5 {[%emt 0:00:29]} Ne5 {[%emt 0:00:37]} 62. Be2 {[%emt 0:00:23]} Ke6 {[%emt 0:00:56]} 63. Ke3 {[%emt 0:00:05]} Kd7 {[%emt 0:00:18]} 64. Bb5+ {[%emt 0:00:14]} Kc7 {[%emt 0:00:22]} 65. h3 {[%emt 0:00:17]} Kd8 {[%emt 0:00:38]} 66. g3 {[%emt 0:01:01]} Ke7 {[%emt 0:00:13]} 67. Be2 {[%emt 0:00:18]} Kf6 {[%emt 0:00:19]} 68. Bb5 {[%emt 0:01:52]} Ke6 {[%emt 0:00:59]} 69. Be2 {[%emt 0:00:40]} Nc6 {[%emt 0:00:48]} 70. Bc4+ {[%emt 0:01:10] Weighted Error Value: White=0.04 (flawless) /Black=0.03 (flawless)} 1/2-1/2

[Event "5th Sharjah Masters 2022"]
[Site "Sharjah"]
[Date "2022.05.26"]
[Round "6.36"]
[White "Mammadzada, Gunay"]
[Black "Kamalidenova, Meruert"]
[Result "1-0"]
[ECO "C82"]
[WhiteElo "2454"]
[BlackElo "2408"]
[Annotator "TA"]
[PlyCount "125"]
[EventDate "2022.05.21"]
[EventType "swiss"]
[EventCountry "UAE"]
[SourceTitle "playchess.com"]
[Source "ChessBase"]
[SourceQuality "1"]
[TimeControl "5400+30"]

{[%evp 23,125,0,0,0,0,0,0,0,0,-11,53,58,72,39,41,48,51,41,133,132,159,154,172,175,167,164,494,500,481,100,89,97,89,98,85,89,97,88,91,0,378,304,304,297,299,296,227,191,304,304,304,304,304,304,304,304,304,0,304,304,304,304,304,304,304,304,304,304,304,304,304,304,304,304,304,304,304,304,304,304,304,304,304,304,29956,304,29970,318,29972,29972,29971,29972,29970,29974,29988,29978,29979,29980,29979,29977,29982,29983,29984,29985]} 1. e4 {[%emt 0:00:03]} e5 {[%emt 0:00:09]} 2. Nf3 {[%emt 0:00:10]} Nc6 {[%emt 0:00:07]} 3. Bb5 {[%emt 0:00:05]} a6 {[%emt 0:00:09]} 4. Ba4 {[%emt 0:00:06]} Nf6 {[%emt 0:00:07]} 5. O-O {[%emt 0:00:14]} Nxe4 {[%emt 0:00:20]} 6. d4 {[%emt 0:00:14]} b5 {[%emt 0:00:09]} 7. Bb3 {[%emt 0:00:02]} d5 {[%emt 0:00:11]} 8. dxe5 {[%emt 0:00:11]} Be6 {[%emt 0:00:10]} 9. c3 {[%emt 0:03:06]} Bc5 {[%emt 0:01:55]} 10. Nbd2 {[%emt 0:06:58]} O-O {[%emt 0:00:48]} 11. Bc2 {[%emt 0:01:26]} Nxf2 {[%emt 0:00:36]} 12. Rxf2 {[%emt 0:00:05]} f6 {[%emt 0:00:29]} 13. Nf1 $1 {[%emt 0:08:30][%mdl 4] is now more promising than 13.exf6. C82: Open Ruy Lopez: 9 c3 without 9...Be7.} Bxf2+ {[%emt 0:00:50]} 14. Kxf2 {[%emt 0:00:02]} fxe5 {[%emt 0:00:14] Hoping for ...e4.} 15. Kg1 {[%emt 0:00:03][%cal Oc2h7] The position is equal.} Qd7 {[%emt 0:02:21]} 16. a4 {[%emt 0:00:52] [#]} Rae8 $146 {[%emt 0:03:38]} ({Black should play} 16... e4 $11 17. Nd4 Bg4) ({Predecessor:} 16... e4 17. Nd4 Ne5 18. b4 Bg4 19. Qe1 Rae8 20. Qg3 Rf6 21. axb5 axb5 22. Bf4 Nd3 {1-0 (42) Zink,D (2237)-Reed,A (2218) ICCF email 2019}) 17. Ng5 $14 {[%emt 0:12:27]} Bf5 {[%emt 0:08:26]} 18. axb5 {[%emt 0:02:02]} (18. Ne3 Bxc2 19. Qxc2 e4 $15) (18. Bxf5 {keeps more tension.} Rxf5 19. Ne3 Rff8 20. Qxd5+ Qxd5 21. Nxd5 Rd8 22. Ne3) 18... axb5 {[%emt 0:01:04]} 19. Bxf5 {[%emt 0:01:27]} (19. Ne3 Bxc2 20. Qxc2 e4 $15) 19... Rxf5 {[%emt 0:01:39]} ({Less strong is} 19... Qxf5 20. Qxd5+ Kh8 21. Be3 $16) 20. Ne3 $1 {[%emt 0:03:45][%csl LRd5,LRf5]} Rxg5 {[%emt 0:16:54]} (20... Rff8 $14) 21. Nxd5 $16 {[%emt 0:00:18]} Rxg2+ {[%emt 0:05:32]} 22. Kxg2 {[%emt 0:01:10][%cal Od5f6]} Nd4 {[%emt 0:01:39]} 23. Ne3 {[%emt 0:22:07]} ({Don't do} 23. cxd4 $6 Qxd5+ 24. Qf3 Qxd4 $14) 23... Qc6+ {[%emt 0:03:03]} 24. Kg3 {[%emt 0:01:13]} Rf8 $2 {[%emt 0:09:38]} (24... Qd6 {is more resistant.}) 25. cxd4 $18 {[%emt 0:03:24]} exd4 {[%emt 0:00:03]} 26. Qb3+ {[%emt 0:03:24]} (26. Ng2 $18) 26... Kh8 $16 {[%emt 0:00:45] ( -> ...Qf3+)} 27. Qd5 {[%emt 0:00:07] Inhibits Qf3+.} Qg6+ {[%emt 0:00:44]} 28. Ng4 {[%emt 0:00:08] And now Ra8 would win.} h5 {[%emt 0:05:02][%csl Gh5][%cal Rg6g4][%mdl 64] Pin} 29. Qxd4 {[%emt 0:05:48][%cal Oh2h3] Strongly threatening h3!} c5 {[%emt 0:00:58]} 30. Qd1 {[%emt 0:02:41][%cal Oa1a3]} hxg4 {[%emt 0:01:35]} 31. Bf4 {[%emt 0:03:22]} (31. Qe2 $16) 31... Qf6 $2 {[%emt 0:03:26][%mdl 8192]} (31... Qe4 $1 $11 {and Black stays safe.} 32. Qxg4 Qd3+ 33. Kh4 Qh7+ 34. Kg3 Qd3+ 35. Kg2 Qe4+ 36. Kg3 Qd3+) 32. Qxg4 {[%emt 0:00:58]} Qxb2 {[%emt 0:00:30]} 33. Qh5+ {[%emt 0:04:18]} Kg8 {[%emt 0:00:22] [#]} 34. Qd5+ {[%emt 0:00:35]} Kh7 {[%emt 0:03:16]} 35. Qxc5 {[%emt 0:00:53]} Qxa1 {[%emt 0:01:43]} (35... Qf6 $142 36. Rf1 Qg6+ 37. Kf3 (37. Kh3 $2 Rf5 $19) 37... Rf5) 36. Qxf8 $18 {[%emt 0:00:05]} Qe1+ {[%emt 0:01:35]} 37. Kg4 {[%emt 0:02:25]} Qd1+ {[%emt 0:02:09]} 38. Kg5 {[%emt 0:01:36] Intending Qf5+ and mate.} Qg1+ {[%emt 0:00:27]} 39. Kf5 {[%emt 0:00:33]} Qb1+ {[%emt 0:02:03]} 40. Kg5 {[%emt 0:00:43] White threatens Qf5+ and mate.} Qg1+ $1 {[%emt 0:00:22] [#]} 41. Bg3 $1 {[%emt 0:00:06]} Qe3+ {[%emt 0:01:08]} 42. Kg4 {[%emt 0:01:32]} Qe2+ {[%emt 0:01:14]} 43. Qf3 {[%emt 0:01:34]} Qc4+ {[%emt 0:00:08]} 44. Qf4 {[%emt 0:01:13] Threatening mate with Qxc4.} Qe2+ {[%emt 0:00:34]} 45. Kf5 {[%emt 0:00:27]} Kg8 {[%emt 0:03:22]} 46. Qe5 {[%emt 0:02:06]} Qc2+ {[%emt 0:03:23]} 47. Ke6 {[%emt 0:01:42]} Qb1 {[%emt 0:01:56]} 48. Qf5 {[%emt 0:02:02]} Qb4 {[%emt 0:05:14]} 49. Bd6 {[%emt 0:00:18]} Qc4+ {[%emt 0:01:11]} 50. Qd5 {[%emt 0:00:10] White wants to mate with Qxc4.} Qe2+ {[%emt 0:00:16]} 51. Be5 {[%emt 0:00:16]} b4 {[%emt 0:01:05]} 52. Qd8+ {[%emt 0:00:31]} Kh7 {[%emt 0:00:09]} 53. Qh4+ {[%emt 0:00:03]} Kg6 $2 {[%emt 0:01:32]} (53... Kg8 $18 54. Qxb4 Qf3) 54. Qxb4 $2 {[%emt 0:01:36]} (54. Qg3+ Kh5 55. Qxg7 Qc4+ 56. Kd6 b3 57. Bc3 Qb5 58. Qf7+ Kg4 59. Qg6+ Kf3 60. Qg3+ Ke4 61. Qe5+ Qxe5+ 62. Bxe5) 54... Kh5 $2 {[%emt 0:00:27]} (54... Qa2+ $18 55. Kd6 Qa6+ 56. Kd7 Qa7+ 57. Kc6 Qa8+ 58. Kc7 Qa7+ 59. Kd8 Kh7) 55. Qc5 $2 {[%emt 0:01:43]} (55. Qf4 {mates} Qa2+ 56. Ke7 Qa7+ 57. Kf8 g6 58. Bd6 Qd7 59. Qf6 Qc6 60. Kg7) 55... g5 $2 {[%emt 0:00:25]} (55... Kh6 $18 56. Qc1+ Kh7) 56. Qf8 {[%emt 0:01:13] White mates.} Qc4+ {[%emt 0:00:20]} 57. Kf6 {[%emt 0:00:27]} Qc6+ {[%emt 0:00:56]} 58. Qd6 {[%emt 0:00:36]} Qa4 {[%emt 0:01:13]} 59. Kg7 {[%emt 0:00:24]} Qa7+ {[%emt 0:00:13]} 60. Qc7 {[%emt 0:00:07]} Qe3 {[%emt 0:00:55]} 61. Qf7+ {[%emt 0:00:42]} Kh4 {[%emt 0:01:18] [#]} 62. Kh6 $1 {[%emt 0:01:43][%csl Gh6][%cal Rf7h5]} Qb6+ {[%emt 0:04:17]} (62... Kh3 63. Qh5+) 63. Qg6 {[%emt 0:00:33] Weighted Error Value: White=0.48/Black=0.67} 1-0